Cogmind - Beta 11 @@@ ROGUE MODE // 2022.04.20 @ 01:33:02 Player: Momo Result: Destroyed by S-27 Virus with Autogun Performance ------------- Evolutions (4) 2000 Regions Visited (12) 2400 Robots Destroyed (79) 395 Value Destroyed (3439) 3439 Prototype IDs (8) 160 Alien Tech Used (0) 0 Bonus (2350) 2350 TOTAL SCORE: 10744 Bonus ------- High Alert Combat Kills 299 Follower Combat Kills 230 Entered Garrisons 600 Used RIF Installer 1000 Aligned with FarCom 300 Friendly Fire -79 Cogmind --------- Core Integrity 0/850 Matter 168/300 Energy 100/100 System Corruption 0% Temperature Cool (1) Movement Flying (50) Location -6/Factory Parts ------- > --- POWER (1) -------- (None) > --- PROPULSION (2) --- Flexi-carbon Leg Nuclear Pulse Thruster > --- UTILITY (10) ----- Advanced Weight Redist. System Machine Analyzer Experimental Sensor Array Improved Signal Interpreter Advanced Terrain Scan Processor Launcher Guidance Computer Transmission Jammer System Shield System Shield > --- WEAPON (2) ------- (None) > --- INVENTORY (5) ---- Faulty Gravity Neutralizer Enhanced Optical Array PSU Rigger Improved Datajack Remote Datajack Peak State ------------ > --- POWER ------------ Improved Ion Engine > --- PROPULSION ------- Gravmag Array > --- UTILITY ---------- Lightpack 2.0 Enhanced Optical Array Experimental Sensor Array Improved Signal Interpreter Launcher Guidance Computer Improved Hacking Suite Relay Coupler [Swarmer] PSU Rigger > --- WEAPON ----------- Long-range Missile Launcher Power Sword > --- INVENTORY -------- Combat Airjet Xenon Bombardment Thruster Cooled VTOL Module Power Amplifier Power Amplifier Advanced Heat Sink Energy Well Advanced Weight Redist. System Triangulator Advanced Terrain Scan Processor Advanced Terrain Scan Processor Transport Network Coupler Improved Salvage Targeting Computer Improved Melee Analysis Suite Launcher Guidance Computer Recoil Stabilizer Matter Filter Improved Particle Charger Microactuators Cloaking Device Improved Light Armor Plating EM Disruption Field System Shield System Shield System Shield Authchip [R/Combat] Authchip [Weapon] Relay Coupler [NC] Relay Coupler [Brawler] Relay Coupler [Demolisher] Relay Coupler [Specialist] Recalibrator Improved Field Recycling Unit Heavy Laser Heavy Machine Gun Heavy Machine Gun Remote Datajack Power Sword [Rating: 104] Favorites ----------- Power Ion Engine Engine Ion Engine Power Core Light Nuclear Core Propulsion Light Treads Treads Light Treads Leg Flexi-carbon Leg Wheel Armored Huge Wheel Hover Unit Gravmag Array Flight Unit Improved VTOL Module Utility Improved Signal Interpreter Device PSU Rigger Storage Lightpack 2.0 Processor Improved Signal Interpreter Hackware Relay Coupler [Swarmer] Protection Light Armor Plating Weapon Assault Rifle Energy Gun Heavy Laser Energy Cannon Cooled Particle Cannon Ballistic Gun Assault Rifle Launcher Long-range Missile Launcher Slashing Weapon Power Sword Special Melee Weapon Improved Datajack Build | -11 -10 -10 -10 -9 -8 -7 -7 -6 -6 -6 -6 -6 ------- Run | Scr Mat Min Exi Min Mat Fac Gar Fac Gar Fac Gar Fac Slots Evolved 8 | . . . . . 4 2 . 2 . . . . Power . | . . . . . . . . . . . . . Propulsion . | . . . . . . . . . . . . . Utility 8 | . . . . . 4 2 . 2 . . . . Weapon . | . . . . . . . . . . . . . Parts Attached 138 | 6 3 2 7 . 14 25 24 11 20 7 13 6 Power 11 | 1 . . 1 . 1 2 1 2 2 1 . . Engine 5 | 1 . . . . . 1 . 1 1 1 . . Core 6 | . . . 1 . 1 1 1 1 1 . . . Reactor . | . . . . . . . . . . . . . Propulsion 26 | 2 . . 3 . 4 2 7 1 3 . 3 1 Treads 3 | 2 . . 1 . . . . . . . . . Leg 8 | . . . 1 . 2 . 3 . . . 2 . Wheel 1 | . . . . . . . . . 1 . . . Hover 4 | . . . 1 . . . . . 2 . 1 . Flight 10 | . . . . . 2 2 4 1 . . . 1 Utility 61 | 1 1 . 3 . 6 11 9 5 8 5 7 5 Device 36 | . . . 2 . 3 7 7 4 3 3 3 4 Storage 4 | 1 . . 1 . 1 . . . 1 . . . Processor 7 | . . . . . 1 . . 1 1 1 2 1 Hackware 5 | . . . . . . 1 . . 1 1 2 . Protection 9 | . 1 . . . 1 3 2 . 2 . . . Artifact . | . . . . . . . . . . . . . Weapon 40 | 2 2 2 . . 3 10 7 3 7 1 3 . Energy Gun 6 | 2 1 . . . . . 1 1 . . 1 . Energy Cannon 8 | . . . . . . 7 1 . . . . . Ballistic Gun 14 | . 1 2 . . 3 2 4 . 2 . . . Ballistic Cannon . | . . . . . . . . . . . . . Launcher 7 | . . . . . . . 1 1 4 . 1 . Special Weapon . | . . . . . . . . . . . . . Impact Weapon . | . . . . . . . . . . . . . Slashing Weapon 4 | . . . . . . . . 1 1 1 1 . Piercing Weapon . | . . . . . . . . . . . . . Special Melee Weapon 1 | . . . . . . 1 . . . . . . Unidentified Prototypes 8 | . . . 2 . 3 2 . . . . . 1 Parts Lost 46 | . . 1 3 . 6 3 14 . 9 . 8 2 Power 7 | . . . 1 . 1 1 1 . 2 . 1 . Propulsion 8 | . . . 2 . . . 4 . 1 . 1 . Utility 14 | . . 1 . . 1 . 3 . 5 . 3 1 Weapon 17 | . . . . . 4 2 6 . 1 . 3 1 Highest Loss Streak 8 | . . 1 2 . 6 2 8 . 7 . 5 2 To Critical Strikes . | . . . . . . . . . . . . . Average Slot Usage (%) 77 | . 98 89 88 85 58 68 70 73 67 54 78 83 Engine 5 | . 14 14 11 . . 3 . . . . 3 . Core 2 | . . . . 14 8 3 6 6 2 . . . Treads 9 | . 28 28 23 . . . . . . . . . Leg 1 | . . . . . 8 . 8 . . . 3 8 Hover 1 | . . . . 14 2 . . . 2 6 4 . Flight 3 | . . . . . 3 15 6 13 . . . 3 Device 12 | . . . 7 14 7 17 9 31 18 13 11 16 Storage 9 | . 14 14 14 14 9 7 7 6 9 6 1 . Processor 6 | . . . . . 7 7 7 7 9 9 21 24 Hackware 5 | . . . . . . 6 5 . 3 9 21 22 Protection 1 | . 12 3 . . 1 1 3 . 2 . . . Energy Gun 1 | . 20 1 . . . . . . . . 2 5 Ballistic Gun 11 | . 7 26 28 28 11 . 7 2 5 . . . Slashing Weapon 1 | . . . . . . . . 4 1 2 6 . Naked Turns . | . . . . . . . . . . . . . Heaviest Build 43 | 13 16 17 24 20 22 30 33 21 43 30 26 6 Greatest Support 59 | 40 40 40 40 20 45 23 59 20 37 20 35 35 Greatest Overweight (x) 11 | . . . 5 . 2 1 5 1 11 1 2 . Average Overweight (x) . | . . . . . . . . . . . . . Largest Inventory Capacity 40 | 8 8 8 10 10 40 40 40 40 40 40 40 5 Average Capacity 23 | 6 8 8 9 10 21 40 40 40 40 40 15 5 Most Carried 40 | 1 8 8 10 10 17 34 33 40 40 40 40 5 Average Carried 18 | . 3 7 7 10 10 25 27 37 32 34 14 4 Final Capacity 40 | 8 8 8 10 10 40 40 40 40 40 40 5 5 Final Carried 40 | 1 8 8 10 10 15 32 28 40 33 40 5 5 Class Distribution -------------------- 41% | Mutant 23% | Hauler-Mutant 11% | Hauler-Sprinter 8% | Hauler-Ninja 6% | Hacker-Mutant 5% | Hauler-Scout 3% | Hacker-Scout Dominant Class ---------------- Mutant | -10/Materials Mutant | -10/Mines Mutant | -10/Exiles Mutant | -9/Mines Mutant | -8/Materials Hauler-Sprinter | -7/Factory Hauler-Mutant | -7/Garrison Hauler-Ninja | -6/Factory Hauler-Mutant | -6/Garrison Hauler-Mutant | -6/Factory Hacker-Mutant | -6/Garrison Hacker-Scout | -6/Factory Resources | -11 -10 -10 -10 -9 -8 -7 -7 -6 -6 -6 -6 -6 ----------- Run | Scr Mat Min Exi Min Mat Fac Gar Fac Gar Fac Gar Fac Matter Collected 2462 | 131 75 110 182 . 222 346 423 97 385 353 138 . Remotely 133 | . . . . . . . . . 133 . . . Salvage Created 2613 | . 83 59 . . 355 310 566 199 454 229 342 16 Parts 127 | . 6 4 . . 21 14 21 5 22 10 20 4 Haulers Intercepted 6 | . . . . . 1 1 . 2 . 2 . . Recyclers Shooed 1 | . . . . . . . . . . 1 . . Parts Field Recycled 14 | . . . . . . . . . 5 9 . . Retrieved Matter 227 | . . . . . . . . . 43 184 . . Parts Self-Destructed . | . . . . . . . . . . . . . Prevented . | . . . . . . . . . . . . . Kills | -11 -10 -10 -10 -9 -8 -7 -7 -6 -6 -6 -6 -6 ------- Run | Scr Mat Min Exi Min Mat Fac Gar Fac Gar Fac Gar Fac Combat Hostiles Destroyed 64 | . 3 2 . . 2 4 15 . 23 . 15 . Melee 2 | . . . . . . . . . . . 2 . Guns 19 | . 3 2 . . 2 . 9 . 2 . 1 . Cannons 6 | . . . . . . 4 2 . . . . . AOE 37 | . . . . . . . 4 . 21 . 12 . Classes Destroyed 13 | . 2 . . . 5 1 2 . 2 . . 1 Worker 4 | . . . . . . 2 . . . 2 . . Builder 2 | . . . . . 1 . . . . 1 . . Hauler 6 | . . . . . 1 1 . 2 . 2 . . Recycler 2 | . . . . . 2 . . . . . . . Operator 1 | . . . . . . . . . . . . 1 Swarmer 22 | . 2 1 . . . . 3 . 8 . 8 . Grunt 29 | . 1 1 . . . 2 8 . 12 . 5 . Brawler 2 | . . . . . . . 2 . . . . . Duelist 2 | . . . . . . . . . 2 . . . Sentry 3 | . . . . . 1 2 . . . . . . Specialist 2 | . . . . . . . 2 . . . . . Hunter 3 | . . . . . 1 . . . . . 2 . Behemoth 1 | . . . . . . . . . 1 . . . Best Kill Streak 14 | . 2 1 . . 5 3 7 1 14 3 12 1 Combat Bots Only 14 | . 2 1 . . 1 1 7 . 14 . 12 . Max Kills in Single Turn 5 | . 1 1 . . 1 1 3 1 5 1 3 1 Gunslinging . | . . . . . . . . . . . . . Exploded 5 | . . . . . . . 3 . 5 . 3 . Melee 1 | . . . . . . . . . . . 1 . Uniques/NPCs Destroyed 3 | . . . 3 . . . . . . . . . EX-HEX (-10/Exiles) EX-BIN (-10/Exiles) 8R-AWN (-10/Exiles) Combat | -11 -10 -10 -10 -9 -8 -7 -7 -6 -6 -6 -6 -6 -------- Run | Scr Mat Min Exi Min Mat Fac Gar Fac Gar Fac Gar Fac Damage Taken 6755 | . 141 276 435 21 511 438 1873 42 1814 51 997 156 Core 1492 | . 12 10 99 11 51 91 366 31 373 16 349 83 Absorbed by Shields . | . . . . . . . . . . . . . Redirected to Shielding 100 | . . . . . . . . . 100 . . . Core Remaining (%) 67 | 100 . . . 47 90 . 34 . . . . . Volleys Fired 205 | . 14 13 1 . 26 24 55 15 35 . 19 3 Largest 2 | . 2 2 2 . 2 2 2 2 2 . 1 1 Hottest 91 | . 90 60 40 . 48 65 91 88 86 . 69 69 Shots Fired 292 | . 23 26 2 . 38 26 81 18 56 . 19 3 Gun 206 | . 23 26 2 . 38 3 60 17 28 . 6 3 Cannon 41 | . . . . . . 23 18 . . . . . Launcher 45 | . . . . . . . 3 1 28 . 13 . Special . | . . . . . . . . . . . . . Kinetic 157 | . 5 23 2 . 38 3 44 14 28 . . . Thermal 85 | . 18 3 . . . 23 29 3 . . 6 3 Explosive 45 | . . . . . . . 3 1 28 . 13 . Electromagnetic 5 | . . . . . . . 5 . . . . . Robot Hit Streak 17 | . 2 13 2 . 14 8 9 11 17 . 11 2 Robot Miss Streak 6 | . 3 6 . . 1 1 5 1 2 . 2 1 Penetration Max 1 | . . . . . 1 . 1 . . . . . Secondary Targets 1 | . . 1 . . . . . . . . . . Max Gunslinging Chain 1 | . . 1 . . . . . . . . . . Shots Hit Robots 214 | . 10 17 2 . 30 19 49 14 41 11 19 2 Core Hits 136 | . 4 4 . . 11 11 28 4 50 3 20 1 Critical Kills 1 | . . . . . . . 1 . . . . . Critical Parts Destroyed 1 | . . . . . . . . . 1 . . . Critical Strikes 4 | . . . . . . . 1 . 1 . 1 1 Burn 1 | . . . . . . . . . . . . 1 Destroy 2 | . . . . . . . 1 . 1 . . . Sever 1 | . . . . . . . . . . . 1 . Melee Attacks 46 | . . . . . . 1 . 15 1 14 15 . Impact . | . . . . . . . . . . . . . Slashing 45 | . . . . . . . . 15 1 14 15 . Piercing . | . . . . . . . . . . . . . Sneak Attacks 9 | . . . . . . 1 . 1 . 7 . . Combat Hostiles 1 | . . . . . . 1 . . . . . . Follow-up Attacks 1 | . . . . . . . . . . . 1 . Damage Inflicted 9864 | . 136 246 22 . 458 499 1533 276 4280 748 1626 40 Guns 2210 | . 136 246 22 . 458 41 628 208 374 . 57 40 Cannons 750 | . . . . . . 458 292 . . . . . Explosions 5776 | . . . . . . . 613 . 3906 . 1257 . Melee 1128 | . . . . . . . . 68 . 748 312 . Ramming . | . . . . . . . . . . . . . Kinetic 1843 | . 37 246 22 . 458 41 488 177 374 . . . Thermal 1015 | . 99 . . . . 458 330 31 . . 57 40 Explosive 5776 | . . . . . . . 613 . 3906 . 1257 . Electromagnetic 102 | . . . . . . . 102 . . . . . Impact . | . . . . . . . . . . . . . Slashing 1128 | . . . . . . . . 68 . 748 312 . Piercing . | . . . . . . . . . . . . . Highest Corruption 5 | . . . 1 1 . 3 5 . . . . . Average Corruption 2 | . . . 1 1 . 2 3 . . . . . Corruption Purged 5 | . . . . . . 3 2 . . . . . Corruption Blocked . | . . . . . . . . . . . . . Effects 10 | . . . 1 . . 3 6 . . . . . Message Errors 1 | . . . . . . . 1 . . . . . Matter Fused 4 | . . . 1 . . 2 1 . . . . . Energy Discharges 1 | . . . . . . . 1 . . . . . Parts Rejected 1 | . . . . . . . 1 . . . . . Data Loss (minor) 2 | . . . . . . 1 1 . . . . . Data Loss (major) 1 | . . . . . . . 1 . . . . . Overload Shots . | . . . . . . . . . . . . . Overflow Damage 458 | . . . . . . 2 18 . 225 203 10 . Projectiles 20 | . . . . . . 2 18 . . . . . Explosions 235 | . . . . . . . . . 225 . 10 . Melee 203 | . . . . . . . . . . 203 . . Knockbacks . | . . . . . . . . . . . . . Impact . | . . . . . . . . . . . . . Kinetic . | . . . . . . . . . . . . . Secondary . | . . . . . . . . . . . . . Self-Inflicted Damage 155 | . . . . . . . 60 . 95 . . . Shots 4 | . . . . . . . 1 . 3 . . . Rammed . | . . . . . . . . . . . . . Targets Rammed . | . . . . . . . . . . . . . Kicked . | . . . . . . . . . . . . . Crushed . | . . . . . . . . . . . . . Highest Temperature 375 | . 375 30 . . 9 10 72 68 132 . 24 . Average Temperature 69 | . 190 12 . . 2 5 27 41 38 . 9 . Received Heat Transfer 1620 | . 48 159 . 12 108 78 249 21 525 . 420 . Effects 1 | . 1 . . . . . . . . . . . Shutdowns 1 | . 1 . . . . . . . . . . . Siege Activations . | . . . . . . . . . . . . . Robots Corrupted . | . . . . . . . . . . . . . Combat Hostiles . | . . . . . . . . . . . . . Parts Fried 1 | . . . . . . . 1 . . . . . Impact Corruptions . | . . . . . . . . . . . . . Robots Melted . | . . . . . . . . . . . . . Combat Hostiles . | . . . . . . . . . . . . . Parts Melted 1 | . 1 . . . . . . . . . . . Heat Transferred 1814 | . 260 . . . . 629 592 74 . . 111 148 Parts Sabotaged . | . . . . . . . . . . . . . Parts Stolen . | . . . . . . . . . . . . . Parts Stripped . | . . . . . . . . . . . . . Power Chain Reactions . | . . . . . . . . . . . . . Missiles Intercepted . | . . . . . . . . . . . . . Alert | -11 -10 -10 -10 -9 -8 -7 -7 -6 -6 -6 -6 -6 ------- Run | Scr Mat Min Exi Min Mat Fac Gar Fac Gar Fac Gar Fac Peak Influence 685 | . 85 177 . . 83 247 638 540 685 451 540 310 Initial 359 | . . 33 . . . 37 154 329 88 359 128 267 Average 269 | . 49 101 . . 35 134 453 341 413 343 411 275 Maximum Alert Level 2 | . . . . . . 1 2 2 2 2 2 1 Low Security (%) 46 | 100 100 100 . 100 100 86 11 16 22 22 17 . Level 1 23 | . . . . . . 13 3 63 14 39 4 100 Level 2 30 | . . . . . . . 85 20 63 37 77 . Level 3 . | . . . . . . . . . . . . . Level 4 . | . . . . . . . . . . . . . Level 5 . | . . . . . . . . . . . . . High Security . | . . . . . . . . . . . . . Max Security . | . . . . . . . . . . . . . Squads Dispatched 15 | . 2 . . . . 3 . 5 . 1 . 4 Investigation 7 | . 1 . . . . 2 . 3 . . . 1 Extermination 4 | . . . . . . 1 . 1 . 1 . 1 Reinforcement 3 | . 1 . . . . . . . . . . 2 Assault . | . . . . . . . . . . . . . Garrison 1 | . . . . . . . . 1 . . . . Intercept . | . . . . . . . . . . . . . Searches Triggered . | . . . . . . . . . . . . . Construction Impeded . | . . . . . . . . . . . . . Haulers Reinforced . | . . . . . . . . . . . . . Active Scanning Responses . | . . . . . . . . . . . . . Cargo Convoy Interrupts . | . . . . . . . . . . . . . Stealth | -11 -10 -10 -10 -9 -8 -7 -7 -6 -6 -6 -6 -6 --------- Run | Scr Mat Min Exi Min Mat Fac Gar Fac Gar Fac Gar Fac Distress Signals 6 | . 2 . . . . . . 2 . 2 . . Communications Jammed . | . . . . . . . . . . . . . Distress Signals . | . . . . . . . . . . . . . Times Spotted 145 | . 7 5 10 3 5 17 24 10 28 11 18 7 Peak Tracking Total 9 | . 4 3 7 3 3 5 8 5 9 5 4 5 Tactical Retreats 13 | . . . 2 . . . 2 5 . 1 2 1 Traps | -11 -10 -10 -10 -9 -8 -7 -7 -6 -6 -6 -6 -6 ------- Run | Scr Mat Min Exi Min Mat Fac Gar Fac Gar Fac Gar Fac Traps Triggered 6 | . 1 . . . . 3 . . . . 2 . Indirectly . | . . . . . . . . . . . . . Trap Hack Attempts . | . . . . . . . . . . . . . Triggered . | . . . . . . . . . . . . . Disarmed . | . . . . . . . . . . . . . Reprogrammed . | . . . . . . . . . . . . . Reused . | . . . . . . . . . . . . . Traps Extracted . | . . . . . . . . . . . . . Installed . | . . . . . . . . . . . . . Triggered . | . . . . . . . . . . . . . Power Sources Rigged 18 | . . . 3 . . 4 8 . 3 . . . Exploded 15 | . . . 3 . . 1 8 . 3 . . . Machines | -11 -10 -10 -10 -9 -8 -7 -7 -6 -6 -6 -6 -6 ---------- Run | Scr Mat Min Exi Min Mat Fac Gar Fac Gar Fac Gar Fac Machines Disabled 7 | . . . . . . . 2 . 4 . 1 . Max in Single Turn 2 | . . . . . . . 1 . 2 . 1 . Garrison Relay 3 | . . . . . . . 2 . 1 . . . Machines Sabotaged . | . . . . . . . . . . . . . Garrisons Compromised . | . . . . . . . . . . . . . Overloaded Fab Kills . | . . . . . . . . . . . . . Hacking | -11 -10 -10 -10 -9 -8 -7 -7 -6 -6 -6 -6 -6 --------- Run | Scr Mat Min Exi Min Mat Fac Gar Fac Gar Fac Gar Fac Machines Accessed 29 | . 2 . . . . 6 . 12 . 6 . 3 Terminals 19 | . 2 . . . . 2 . 9 . 4 . 2 Fabricators 4 | . . . . . . 2 . 1 . . . 1 Repair Stations . | . . . . . . . . . . . . . Recycling Units 1 | . . . . . . . . . . 1 . . Scanalyzers 1 | . . . . . . 1 . . . . . . Garrison Access 4 | . . . . . . 1 . 2 . 1 . . Total Hacks 84 | . 2 . . . . 21 . 32 . 22 . 7 Successful 41 | . 1 . . . . 11 . 16 . 11 . 2 Failed 43 | . 1 . . . . 10 . 16 . 11 . 5 Catastrophic 3 | . 1 . . . . . . . . 1 . 1 Database Lockouts . | . . . . . . . . . . . . . Manual 54 | . . . 1 . . 12 . 22 . 13 . 6 Terminals 57 | . 2 . . . . 7 . 24 . 18 . 6 Fabricators 11 | . . . . . . 7 . 3 . . . 1 Repair Stations . | . . . . . . . . . . . . . Recycling Units 2 | . . . . . . . . . . 2 . . Scanalyzers 5 | . . . . . . 5 . . . . . . Garrison Access 9 | . . . . . . 2 . 5 . 2 . . Terminal Hacks 13 | . 1 . . . . 2 . 5 . 5 . . Branch Access Points 3 | . . . . . . 1 . 1 . 1 . . Unreport Threat 3 | . . . . . . . . 2 . 1 . . Dispatch Records 1 | . . . . . . . . . . 1 . . Registered Components 3 | . . . . . . 1 . 1 . 1 . . Zone Layout 3 | . 1 . . . . . . 1 . 1 . . Fabricator Hacks 2 | . . . . . . 1 . . . . . 1 Network Status 1 | . . . . . . . . . . . . 1 Build 1 | . . . . . . 1 . . . . . . Repair Station Hacks . | . . . . . . . . . . . . . Recycling Unit Hacks . | . . . . . . . . . . . . . Scanalyzer 3 | . . . . . . 3 . . . . . . Insert Component 1 | . . . . . . 1 . . . . . . Analyze 2 | . . . . . . 2 . . . . . . Garrison Access Hacks 4 | . . . . . . 1 . 2 . 1 . . Unlock Access 4 | . . . . . . 1 . 2 . 1 . . Unauthorized Hacks 19 | . . . . . . 4 . 9 . 5 . 1 Terminals 14 | . . . . . . 2 . 6 . 5 . 1 Assimilate 1 | . . . . . . . . . . 1 . . Botnet 13 | . . . . . . 2 . 6 . 4 . 1 Fabricators 3 | . . . . . . 2 . 1 . . . . Prioritize 1 | . . . . . . 1 . . . . . . Recompile 2 | . . . . . . 1 . 1 . . . . Repair Stations . | . . . . . . . . . . . . . Recycling Units . | . . . . . . . . . . . . . Scanalyzers . | . . . . . . . . . . . . . Garrison Access 2 | . . . . . . . . 2 . . . . Reprogram 2 | . . . . . . . . 2 . . . . Data Cores Recovered . | . . . . . . . . . . . . . Used . | . . . . . . . . . . . . . Hacking Detections 23 | . 1 . . . . 4 . 10 . 6 . 2 Full Trace Events 3 | . . . . . . 1 . 1 . . . 1 Feedback Events . | . . . . . . . . . . . . . Feedback Blocked . | . . . . . . . . . . . . . Robot Schematics Acquired . | . . . . . . . . . . . . . Robots Built 3 | . . . . . . 3 . . . . . . Authchips . | . . . . . . . . . . . . . Time 116 | . . . . . . 116 . . . . . . Total Robot Build Rating 9 | . . . . . . 9 . . . . . . Part Schematics Acquired . | . . . . . . . . . . . . . Parts Built . | . . . . . . . . . . . . . Authchips . | . . . . . . . . . . . . . Time . | . . . . . . . . . . . . . Total Part Build Rating . | . . . . . . . . . . . . . Parts Repaired . | . . . . . . . . . . . . . Time . | . . . . . . . . . . . . . Parts Recycled . | . . . . . . . . . . . . . Recycled Matter . | . . . . . . . . . . . . . Retrieved Matter . | . . . . . . . . . . . . . Retrieved Components . | . . . . . . . . . . . . . Parts Scanalyzed 1 | . . . . . . 1 . . . . . . Part Schematics Acquired . | . . . . . . . . . . . . . Parts Damaged . | . . . . . . . . . . . . . Bothacking | -11 -10 -10 -10 -9 -8 -7 -7 -6 -6 -6 -6 -6 ------------ Run | Scr Mat Min Exi Min Mat Fac Gar Fac Gar Fac Gar Fac Used RIF Installer 2 | . . . . . . . 1 . . . 1 . Command Fork 1 | . . . . . . . . . . . 1 . Robots Hacked . | . . . . . . . . . . . . . Non-combat . | . . . . . . . . . . . . . Combat . | . . . . . . . . . . . . . Robot Hacks Applied . | . . . . . . . . . . . . . Relay Couplers Released 9 | . . . . . . . 6 . 3 . . . Machine Destruction 9 | . . . . . . . 6 . 3 . . . Attached 1 | . . . . . . . . . 1 . . . Fabnet Peak Effective % . | . . . . . . . . . . . . . Robots Rewired 1 | . . . . . . 1 . . . . . . Allies Hacked . | . . . . . . . . . . . . . Hacks Repelled . | . . . . . . . . . . . . . Allies | -11 -10 -10 -10 -9 -8 -7 -7 -6 -6 -6 -6 -6 -------- Run | Scr Mat Min Exi Min Mat Fac Gar Fac Gar Fac Gar Fac Total Allies 12 | . . 5 . . . 4 . 2 . 1 . . Largest Group 5 | . . 5 5 . . 3 . 2 . 1 1 . Highest-Rated Group 97 | . . 97 97 . . 48 . 58 . 10 10 . Highest-Rated Ally 31 | . . 31 31 . . 16 . 29 . 10 10 . Total Orders 2 | . . . 1 . . . . . . . 1 . STAY 2 | . . . 1 . . . . . . . 1 . Ally Attacks 103 | . . 14 42 . . 41 . 6 . . . . Total Damage 2452 | . . 188 1688 . . 480 . 96 . . . . Kills 17 | . . 3 7 . . 7 . . . . . . Allies Corrupted . | . . . . . . . . . . . . . Allies Melted . | . . . . . . . . . . . . . Turrets Deployed 3 | . . . 3 . . . . . . . . . Intel | -11 -10 -10 -10 -9 -8 -7 -7 -6 -6 -6 -6 -6 ------- Run | Scr Mat Min Exi Min Mat Fac Gar Fac Gar Fac Gar Fac Robot Analysis Total . | . . . . . . . . . . . . . Derelict Logs Recovered 1 | . . 1 . . . . . . . . . . Drone Launches . | . . . . . . . . . . . . . Drone Recoveries . | . . . . . . . . . . . . . Exploration | -11 -10 -10 -10 -9 -8 -7 -7 -6 -6 -6 -6 -6 ------------- Run | Scr Mat Min Exi Min Mat Fac Gar Fac Gar Fac Gar Fac Turns Passed 6319 | 62 230 565 1597 8 236 715 586 538 528 515 393 346 Spaces Moved 6389 | 36 111 324 1006 14 161 1320 474 1202 302 682 270 487 Core 56 | 4 . . 30 . . . 14 . 6 . 2 . Treads 1316 | 32 111 324 849 . . . . . . . . . Legs 402 | . . . 5 . 35 . 192 . . . 84 86 Wheels 130 | . . . . . . . . . 130 . . . Hover 1222 | . . . 122 14 56 . . . 164 682 184 . Flight 3263 | . . . . . 70 1320 268 1202 2 . . 401 Fastest Speed 32 | 50 160 160 60 60 32 32 32 32 34 60 60 50 Average Speed 78 | 147 160 160 154 60 82 36 74 33 113 61 92 62 Slowest Speed 600 | 160 160 160 300 60 175 102 300 102 600 110 150 120 Overloaded Moves 2 | . . . . . . 2 . . . . . . Propulsion Burnouts . | . . . . . . . . . . . . . Robots Hopped 18 | . . . 1 . . 6 1 8 . . . 2 Cave-ins Triggered . | . . . . . . . . . . . . . Exploration Rate (%) 35 | 4 25 65 76 10 14 29 56 38 45 21 59 14 Regions Visited 12 Branch Regions 3 Pre-discovered Areas 1 | . . 1 . . . . . . . . . . Known Exits Taken 4 | . . . . . 1 1 . 1 . 1 . . Unknown Exits Taken 5 | 1 1 1 1 1 . . . . . . . . Scrap Searched . | . . . . . . . . . . . . . Spaces Dug 17 | . . . . . . 1 . 14 . 2 . . Terrain Destroyed 311 | . . . . . . 2 49 26 166 2 66 . Melee 16 | . . . . . . . . 14 . 2 . . Projectile 11 | . . . . . . 2 2 . 7 . . . AOE 284 | . . . . . . . 47 12 159 . 66 . Terrain Rammed . | . . . . . . . . . . . . . Walls Destroyed . | . . . . . . . . . . . . . Machines Disabled . | . . . . . . . . . . . . . Actions | -11 -10 -10 -10 -9 -8 -7 -7 -6 -6 -6 -6 -6 --------- Run | Scr Mat Min Exi Min Mat Fac Gar Fac Gar Fac Gar Fac Total 7348 | 42 141 346 1048 13 224 1526 627 1301 431 753 371 525 Wait 294 | . . 4 3 . 6 112 39 12 40 35 23 20 Move 6341 | 35 110 323 1003 13 160 1307 471 1185 301 681 269 483 Hop 18 | . . . 1 . . 6 1 8 . . . 2 Pick Up 156 | 1 11 2 15 . 11 27 19 35 13 14 4 4 Fast Attach 46 | 6 . . 4 . 7 6 4 6 1 2 5 5 Attach 67 | . 1 2 2 . 7 14 15 4 12 3 6 1 Detach 29 | . . . . . 5 12 2 3 6 1 . . Swap 26 | . 2 . 1 . . 6 5 1 7 2 2 . Drop 77 | . 3 2 15 . 2 7 8 17 12 1 3 7 Fire 205 | . 14 13 1 . 26 24 55 15 35 . 19 3 Melee 45 | . . . . . . 1 . 15 1 14 14 . Ram . | . . . . . . . . . . . . . Kick . | . . . . . . . . . . . . . Crush . | . . . . . . . . . . . . . Escape Stasis 26 | . . . . . . . . . . . 26 . Rewire . | . . . . . . . . . . . . . Trap 18 | . . . 3 . . 4 8 . 3 . . . Miscellaneous . | . . . . . . . . . . . . . Route ------- -11/Scrapyard -10/Materials -10/Mines (discovered 3 exits: [*Mat x2] / *Exi) -10/Exiles -9/Mines -8/Materials (discovered 2 exits: *Fac / *Sto) -7/Factory (discovered 4 exits: *Fac / Low x2 / Gar) -7/Garrison (discovered 2 exits: *Fac x2) -6/Factory (discovered 4 exits: *Low x2 / Gar / Gar) -6/Garrison -6/Factory (discovered 3 exits: Low x2 / Gar) -6/Garrison (discovered 2 exits: *Fac x2) -6/Factory (discovered 1 exit: *Low) History --------- Turn | Location | Event 26 | -11/Scrapyard | Discovered new exit (range 16) 63 | -11/Scrapyard | Entered Materials 260 | -10/Materials | Discovered new exit (range 16) 293 | -10/Materials | Entered Mines 301 | -10/Mines | Build established: Mutant 306 | -10/Mines | Assisted by bots powering up and referring to "LRC-V3" 379 | -10/Mines | Found a damaged Exp. Sensor Array with a note attached 383 | -10/Mines | Found Prototype Device 419 | -10/Mines | Discovered new exit (range 9) 568 | -10/Mines | Discovered new exit (range 11) 667 | -10/Mines | Learned location of Zion (-7) 850 | -10/Mines | Deemed a non-threat by the Exiles lab entrance 850 | -10/Mines | Discovered new exit (range 5) 858 | -10/Mines | Entered Exiles 858 | -10/Exiles | Accompanied by 5 allies 888 | -10/Exiles | Led the pair of lost Derelicts to a safe place 898 | -10/Exiles | Met 8R-AWN 926 | -10/Exiles | Met EX-HEX 1055 | -10/Exiles | Met EX-DEC 1292 | -10/Exiles | Visited The Gauntlet 1407 | -10/Exiles | Met EX-BIN 1426 | -10/Exiles | Aligned with FarCom system 1428 | -10/Exiles | Given EX-Vault access code 1466 | -10/Exiles | Opened EX-Vault 1472 | -10/Exiles | Found Deploy-a-Sentry 1475 | -10/Exiles | Found Deploy-a-Sentry 1478 | -10/Exiles | Found Deploy-a-Sentry 1482 | -10/Exiles | Found Prototype Device 1491 | -10/Exiles | Found Prototype Storage 1529 | -10/Exiles | Warned to stay clear of 0b10 Research branches 1588 | -10/Exiles | Identified PSU Rigger 2084 | -10/Exiles | DAS Turret deployed 2086 | -10/Exiles | DAS Turret deployed 2091 | -10/Exiles | DAS Turret deployed 2187 | -10/Exiles | Attacked by the Exiles 2187 | -10/Exiles | Allies destroyed EX-HEX 2194 | -10/Exiles | Allies destroyed EX-BIN 2222 | -10/Exiles | Allies destroyed 8R-AWN 2447 | -10/Exiles | Discovered new exit (range 14) 2455 | -10/Exiles | Stole two prototypes: Lightpack 2.0, PSU Rigger 2455 | -10/Exiles | Entered Mines 2458 | -9/Mines | Core integrity fell below 50% 2459 | -9/Mines | Discovered new exit (range 8) 2463 | -9/Mines | Entered Materials 2463 | -8/Materials | Evolved 4 slots: Utility x4 2463 | -8/Materials | Identified Exp. Sensor Array 2517 | -8/Materials | Discovered new exit (range 15) 2612 | -8/Materials | Identified Lightpack 2.0 2614 | -8/Materials | Lost 6 parts (1p1u4w) 2676 | -8/Materials | Identified exit to Storage 2682 | -8/Materials | Discovered new exit (range 16) 2697 | -8/Materials | Identified exit to Factory 2699 | -8/Materials | Entered Factory 2699 | -7/Factory | Evolved 2 slots: Utility x2 2726 | -7/Factory | Identified exit to Garrison 2877 | -7/Factory | Fabricated G-47 Trooper (x3) 2974 | -7/Factory | Build established: Hauler-Sprinter 2985 | -7/Factory | Discovered new exit (range 15) 3004 | -7/Factory | Identified exit to Factory 3080 | -7/Factory | Identified exit to Lower Caves 3414 | -7/Factory | Entered Garrison 3513 | -7/Garrison | Destroyed 7 combat bots 3536 | -7/Garrison | Triggered checkpoint 3622 | -7/Garrison | Garrison Relay disabled 3623 | -7/Garrison | Lost 3 parts (1n1u1w) 3715 | -7/Garrison | Triggered checkpoint 3737 | -7/Garrison | Build established: Hauler-Mutant 3757 | -7/Garrison | Core integrity fell below 50% 3824 | -7/Garrison | Lost 8 parts (1p3n1u3w) 3876 | -7/Garrison | Discovered exit to Factory (range 11) 3888 | -7/Garrison | Triggered checkpoint 3926 | -7/Garrison | Discovered exit to Factory (range 12) 3932 | -7/Garrison | Installed Relay Interface Framework 3940 | -7/Garrison | Triggered checkpoint 3971 | -7/Garrison | Garrison Relay disabled 4000 | -7/Garrison | Entered Factory 4000 | -6/Factory | Evolved 2 slots: Utility x2 4099 | -6/Factory | Identified exit to Garrison 4113 | -6/Factory | Garrison activated, responded to threat 4316 | -6/Factory | Identified exit to Garrison 4342 | -6/Factory | Discovered new exit (range 4) 4344 | -6/Factory | Identified exit to Lower Caves 4402 | -6/Factory | Discovered exit to Lower Caves (range 5) 4506 | -6/Factory | Build established: Hauler-Ninja 4538 | -6/Factory | Entered Garrison 4591 | -6/Garrison | Spotted B-75 Beast 4626 | -6/Garrison | Triggered checkpoint 4659 | -6/Garrison | Destroyed B-75 Beast 4685 | -6/Garrison | Garrison Relay disabled 4715 | -6/Garrison | Triggered checkpoint 4715 | -6/Garrison | Triggered checkpoint 4724 | -6/Garrison | Triggered checkpoint 4790 | -6/Garrison | Destroyed 14 combat bots 4796 | -6/Garrison | Lost 7 parts (1p1n4u1w) 4847 | -6/Garrison | Build established: Hauler-Mutant 4914 | -6/Garrison | Discovered new exit (range 9) 5036 | -6/Garrison | Triggered checkpoint 5066 | -6/Garrison | Entered Factory 5234 | -6/Factory | Identified exit to Garrison 5581 | -6/Factory | Entered Garrison 5581 | -6/Garrison | Accompanied by 1 ally 5640 | -6/Garrison | Triggered checkpoint 5640 | -6/Garrison | Triggered checkpoint 5664 | -6/Garrison | Triggered checkpoint 5671 | -6/Garrison | Core integrity fell below 50% 5703 | -6/Garrison | Destroyed 12 combat bots 5726 | -6/Garrison | Lost 3 parts (1n1u1w) 5788 | -6/Garrison | Discovered new exit (range 19) 5857 | -6/Garrison | Core integrity fell below 20% 5872 | -6/Garrison | Lost 5 parts (1p2u2w) 5908 | -6/Garrison | Triggered checkpoint 5950 | -6/Garrison | Discovered new exit (range 12) 5962 | -6/Garrison | Identified exit to Factory 5969 | -6/Garrison | Expanded RIF knowledge: Command Fork 5974 | -6/Garrison | Entered Factory 5995 | -6/Factory | Build established: Hacker-Mutant 6101 | -6/Factory | Discovered exit to Lower Caves (range 9) 6298 | -6/Factory | Spotted B-75 Beast 6320 | -6/Factory | Destroyed by S-27 Virus with Autogun Last Messages --------------- 06275_ >> Machine Analyzer network decryption results: 06275_ Fabricator x1 06280_ >> Machine Analyzer network decryption results: 06280_ Terminal x3 06286_ Hvy. Laser destroyed. 06288_ K-01 Serf cleans the Assembly Bed. 06291_ >> Machine Analyzer network decryption results: 06291_ DSF Access x1 06294_ Connecting with Terminal... 06294_ ALERT: Suspicious activity at Terminal F018. Dispatching Investigation squad. 06300_ O-24 Administrator: "IFF HANDSHAKE FAILED. SECURING TERMINAL." 06301_ O-24 Administrator uses terminal to summon reinforcements. 06301_ ALERT: Hostiles spotted, dispatching reinforcements to Terminal F020. 06301_ O-24 Administrator locks terminal. 06312_ Imp. Hacking Suite destroyed. 06315_ K-01 Serf collects debris. 06319_ >> Machine Analyzer network decryption results: 06319_ Repair Station x1 Map ----- +----------------------------------------------------+ | | | | | | | | | | | | | | | | | | | | | | | | | | | | | | | | | | | ????????????????????????????????#############????? | | ???????????????????????????????# #????? | | ????????????###########????????# #????? | | ????????????# ????????# k #????? | | ????????????# ???????# #????? | | ????????????# / ?####### #????? | | ????????????#/ # s s #????? | | ????????????# # ###s #????? | | ????????????# @ #?# #????? | | ????????????? "" "" # #?# k #????? | | ??????????????"" "" # T## #????? | | ??????????????""" """ ?# ## ###### | | ??????????????""" """ ?# ### + | | ??????????????"""?""" ??+ #?#######/###### | | ????????????????? ??# #?????# p | | ?????????????????#####???# #?????# | | ????????????????????????? ?????# | | ????????????????????????? ???### | | ?????????????"""????????? "" "" | | ????????????""R"????????? ######## "" "" | | ????????????""?"????????# #??????# """ """ | | ????????????????????????### ###??????# """ """ | | ??????????????????????????? ?????????# """ """ | | ??????????????????????????? ?????????# | | ?????????????????????????????????????# | | ?????????????????????????????????????###### | | ??????????????????????????????????????????####+### | | ???????????????????????????????????????????? # | | ?????????????????????????????????????????""""" # | | ???????????????????????????????????????? """"" # | | ??????????????????????????????????????? """ # | | ????????????????????????????????????????? # | | ????????????????????????????????????????? # | +----------------------------------------------------+ Best States ------------- Heat Dissipation 51 Energy Generation 18 Energy Capacity 500 Matter Stores 300 Matter Capacity 300 Sight Range 22 Robot Scan Range 20 Terrain Scan Density 210 Jamming Range 12 Additional Mass Support 9 Armor Coverage 375 Weapon Shielding 66 Melee Speed Boost 20 Evasion (%) 63 Launcher Accuracy 20 Recoil Reduction 2 Matter Filtering 30 Offensive Hacking 12 Defensive Hacking 20 Relay Coupler Types 1 Relay Coupler Value 35 Authchip Count 2 Item Schematics ----------------- None Robot Schematics ------------------ None Fabricated ------------ G-47 Trooper | x3 | -7/Factory | Preloaded Alien Tech Used ----------------- None Achievements -------------- None Challenges ------------ None Game ------ Seed LinearAdvancedSteel Manual? 1 Play Time 01:57:39 Cumulative 261.2 hours Start 2022.04.19 @ 18:10:17 End 2022.04.20 @ 01:33:02 Sessions 1 Manual Loads 0 Difficulty Rogue Special Mode None Game No. 134 Rogue 130 Adventurer 0 Explorer 4 Win Type - Total 15 Types 4/0/2/3/1/2/3/0/0 Lore% 75 Gallery% 81 Achievement% 73 Wizard Run 0 Options --------- ASCII 0 Keyboard 0 Movement Mouse Keybinds 0 Fullscreen 1 Font 18/SmallcapsGlow Map View 76x50 Tactical HUD 1 Map Filters NONE Filters NONE Steam 1 RUN: 07324237-943a-435d-92ef-c1e914d1e05c